fUST/lending_fUST_20250128
["ID","MTS","AMOUNT","RATE_DAILY","PERIOD"]
[350655944,1738035044371,-500.0,0.00017755,2]
[350655945,1738035044381,-151.0,0.00017755,2]
[350655946,1738035044390,-151.0,0.00017755,2]
[350655947,1738035044400,-201.458573,0.00017755,2]
[350655948,1738035044409,-201.458573,0.00017755,2]
[350655949,1738035044418,-151.0,0.00017755,2]
[350655950,1738035044427,-151.0,0.00017755,2]
[350655951,1738035044437,-151.0,0.00017755,2]
[350655952,1738035044448,-151.0,0.00017755,2]
[350655953,1738035044458,-151.0,0.00017755,2]
[350655954,1738035044467,-514.4,0.0001785,2]
[350655955,1738035044478,-500.0,0.0001785,2]
[350655956,1738035044488,-161.05857705,0.00017889,2]
[350655957,1738035044497,-500.0,0.00017889,2]
[350655958,1738035044507,-500.0,0.00017889,2]
[350655959,1738035044517,-562.67,0.00017889,2]
[350655960,1738035044526,-500.0,0.00017889,2]
[350655961,1738035044535,-500.0,0.0001789,2]
[350655962,1738035044545,-500.0,0.0001789,2]
[350655963,1738035044555,-500.0,0.0001789,2]
[350655964,1738035044564,-500.0,0.0001789,2]
[350655965,1738035044574,-500.0,0.0001789,2]
[350655966,1738035044583,-500.0,0.0001789,2]
[350655967,1738035044592,-500.0,0.0001789,2]
[350655968,1738035044603,-509.74,0.0001789,2]
[350655969,1738035044613,-500.0,0.0001789,2]
[350655970,1738035044623,-513.61,0.0001789,2]
[350655971,1738035044633,-500.0,0.0001789,2]
[350655972,1738035044642,-500.0,0.0001789,2]
[350655973,1738035044652,-500.0,0.0001789,2]
[350655974,1738035044662,-500.0,0.0001789,2]
[350655975,1738035044671,-500.0,0.0001789,2]
[350655976,1738035044681,-151.0,0.0001789,2]
[350655977,1738035044691,-50.72540691,0.0001789,2]
[350655978,1738035044773,-713.95701685,0.0001789,2]
[350655979,1738035044785,-180.18757624,0.0001789,2]
[350655980,1738035044795,-2408.08,0.0001789,2]
[350655981,1738035044804,-162.805494,0.0001789,2]
[350655982,1738035044814,-162.805494,0.0001789,2]
[350655983,1738035044825,-151.0,0.0001789,2]
[350655984,1738035044835,-500.0,0.0001789,2]
[350655985,1738035044845,-395.511229,0.0001789,2]
[350655986,1738035044854,-395.511229,0.0001789,2]
[350655987,1738035044863,-864.25,0.0001789,2]
[350655988,1738035044873,-448.33867668,0.00017891,2]
[350655989,1738035044883,-500.0,0.00017891,2]
[350655990,1738035044892,-500.0,0.00017891,2]
[350655991,1738035044902,-151.0,0.00017891,2]
[350655992,1738035044913,-355.333469,0.00017891,2]
[350655993,1738035044922,-355.333469,0.00017891,2]
[350655994,1738035044931,-254.602324,0.00017891,2]
[350655995,1738035044940,-254.602324,0.00017891,2]
[350655996,1738035044950,-614.235754,0.00017891,2]
[350655997,1738035044959,-151.0,0.00017891,2]
[350655998,1738035044969,-614.235754,0.00017891,2]
[350655999,1738035044981,-500.0,0.00017892,2]
[350656000,1738035044990,-500.0,0.00017892,2]
[350656001,1738035044999,-151.0,0.00017892,2]
[350656002,1738035045008,-151.0,0.00017892,2]
[350656003,1738035045018,-500.0,0.00017987,2]
[350656004,1738035045028,-420.0,0.00018008,2]
[350656005,1738035045036,-500.0,0.00018026,2]
[350656006,1738035045046,-500.0,0.00018026,2]
[350656007,1738035045057,-562.67,0.00018026,2]
[350656008,1738035045066,-500.0,0.00018026,2]
[350656009,1738035045077,-500.0,0.00018027,2]
[350656010,1738035045087,-500.0,0.00018027,2]
[350656011,1738035045097,-500.0,0.00018027,2]
[350656012,1738035045107,-500.0,0.00018027,2]
[350656013,1738035045116,-500.0,0.00018027,2]
[350656014,1738035045126,-500.0,0.00018027,2]
[350656015,1738035045135,-500.0,0.00018027,2]
[350656016,1738035045145,-500.0,0.00018027,2]
[350656017,1738035045154,-513.61,0.00018027,2]
[350656018,1738035045163,-458.36910801,0.00018027,2]
[350656019,1738035045173,-500.0,0.00018027,2]
[350656020,1738035045182,-500.0,0.00018027,2]
[350656021,1738035045191,-151.0,0.00018027,2]
[350656022,1738035045201,-538.98350484,0.00018027,2]
[350656023,1738035045211,-500.0,0.00018027,2]
[350656024,1738035045220,-158.534219,0.00018027,2]
[350656025,1738035045230,-151.0,0.00018027,2]
[350656026,1738035045240,-158.534219,0.00018027,2]
[350656027,1738035045249,-182.453812,0.00018027,2]
[350656028,1738035045259,-944.87,0.00018027,2]
[350656029,1738035045268,-2408.08,0.00018027,2]
[350656030,1738035045278,-500.0,0.00018027,2]
[350656031,1738035045287,-864.25,0.00018027,2]
[350656032,1738035045296,-500.0,0.00018028,2]
[350656033,1738035045305,-500.0,0.00018028,2]
[350656034,1738035045314,-151.0,0.00018028,2]
[350656035,1738035045323,-151.0,0.00018028,2]
[350656036,1738035045332,-151.0,0.00018028,2]
[350656037,1738035045342,-151.0,0.00018028,2]
[350656038,1738035045351,-151.0,0.00018028,2]
[350656039,1738035045360,-151.0,0.00018028,2]
[350656040,1738035045369,-151.0,0.00018028,2]
[350656041,1738035045379,-172.464441,0.00018028,2]
[350656042,1738035045388,-460.52286005,0.00018029,2]
[350656043,1738035045397,-500.0,0.00018029,2]
[350656044,1738035045407,-442.72699873,0.00018053,2]
[350656045,1738035045416,-500.0,0.00018064,2]
[350656046,1738035045426,-500.0,0.00018124,2]
[350656047,1738035045435,-500.0,0.00018163,2]
[350656048,1738035045445,-562.67,0.00018163,2]
[350656049,1738035045455,-500.0,0.00018163,2]
[350656050,1738035045464,-500.0,0.00018164,2]
[350656051,1738035045473,-500.0,0.00018164,2]
[350656052,1738035045483,-500.0,0.00018164,2]
[350656053,1738035045492,-500.0,0.00018164,2]
[350656054,1738035045501,-500.0,0.00018164,2]
[350656055,1738035045511,-500.0,0.00018164,2]
[350656056,1738035045521,-500.0,0.00018164,2]
[350656057,1738035045532,-500.0,0.00018164,2]
[350656058,1738035045541,-524.18335274,0.00018164,2]
[350656059,1738035045550,-500.0,0.00018164,2]
[350656060,1738035045560,-500.0,0.00018164,2]
[350656061,1738035045570,-310.16,0.00018164,2]
[350656062,1738035045579,-944.87,0.00018164,2]
[350656063,1738035045588,-2408.08,0.00018164,2]
[350656064,1738035045598,-500.0,0.00018164,2]
[350656065,1738035045607,-864.25,0.00018164,2]
[350656066,1738035045616,-500.0,0.00018165,2]
[350656067,1738035045626,-500.0,0.00018165,2]
[350656068,1738035045635,-513.61,0.00018165,2]
[350656069,1738035045645,-151.0,0.00018165,2]
[350656070,1738035045655,-162.805494,0.00018165,2]
[350656071,1738035045664,-162.805494,0.00018165,2]
[350656072,1738035045673,-151.0,0.00018165,2]
[350656073,1738035045683,-395.511229,0.00018165,2]
[350656074,1738035045692,-395.511229,0.00018165,2]
[350656075,1738035045788,-500.0,0.00018166,2]
[350656076,1738035045798,-151.0,0.00018166,2]
[350656077,1738035045807,-151.0,0.00018166,2]
[350656078,1738035045816,-151.0,0.00018166,2]
[350656079,1738035045826,-151.0,0.00018166,2]
[350656080,1738035045839,-500.0,0.00018184,2]
[350656081,1738035045849,-500.0,0.00018261,2]
[350656082,1738035045859,-513.61,0.00018269,2]
[350656083,1738035045868,-513.61,0.00018269,2]
[350656084,1738035045879,-500.0,0.0001827,2]
[350656085,1738035045889,-500.0,0.0001827,2]
[350656086,1738035045902,-427.23144481,0.0001827,2]
[350656087,1738035045916,-500.0,0.0001827,2]
[350656088,1738035045925,-500.0,0.0001827,2]
[350656089,1738035045934,-500.0,0.0001827,2]
[350656090,1738035045943,-500.0,0.0001827,2]
[350656091,1738035045953,-151.0,0.0001827,2]
[350656092,1738035045962,-151.0,0.0001827,2]
[350656093,1738035045971,-151.0,0.0001827,2]
[350656094,1738035045981,-201.458573,0.0001827,2]
[350656095,1738035045991,-201.458573,0.0001827,2]
[350656096,1738035046000,-151.0,0.0001827,2]
[350656097,1738035046009,-151.0,0.0001827,2]
[350656098,1738035046019,-151.0,0.0001827,2]
[350656099,1738035046035,-151.0,0.0001827,2]
[350656100,1738035046044,-151.0,0.0001827,2]
[350656101,1738035046053,-151.0,0.0001827,2]
[350656102,1738035046063,-151.0,0.0001827,2]
[350656103,1738035046074,-355.333469,0.0001827,2]
[350656104,1738035046083,-355.333469,0.0001827,2]
[350656105,1738035046092,-254.602324,0.0001827,2]
[350656106,1738035046101,-254.602324,0.0001827,2]
[350656107,1738035046111,-614.235754,0.0001827,2]
[350656108,1738035046121,-614.235754,0.0001827,2]
[350656109,1738035046130,-151.0,0.000183,2]
[350656110,1738035046139,-500.0,0.000183,2]
[350656111,1738035046149,-562.67,0.000183,2]
[350656112,1738035046158,-500.0,0.000183,2]
[350656113,1738035046167,-500.0,0.00018301,2]
[350656114,1738035046176,-500.0,0.00018301,2]
[350656115,1738035046186,-500.0,0.00018301,2]
[350656116,1738035046195,-500.0,0.00018301,2]
[350656117,1738035046204,-500.0,0.00018301,2]
[350656118,1738035046214,-500.0,0.00018301,2]
[350656119,1738035046223,-500.0,0.00018301,2]
[350656120,1738035046233,-500.0,0.00018301,2]
[350656121,1738035046242,-500.0,0.00018301,2]
[350656122,1738035046251,-161.732647,0.00018301,2]
[350656123,1738035046261,-500.0,0.00018301,2]
[350656124,1738035046270,-158.534219,0.00018301,2]
[350656125,1738035046279,-151.0,0.00018301,2]
[350656126,1738035046287,-158.534219,0.00018301,2]
[350656127,1738035046298,-944.87,0.00018301,2]
[350656128,1738035046307,-2408.08,0.00018301,2]
[350656129,1738035046316,-500.0,0.00018301,2]
[350656130,1738035046326,-864.25,0.00018301,2]
[350656131,1738035046335,-500.0,0.00018302,2]
[350656132,1738035046344,-500.0,0.00018302,2]
[350656133,1738035046353,-500.0,0.00018303,2]
[350656134,1738035046363,-151.0,0.00018303,2]
[350656135,1738035046372,-151.0,0.00018303,2]
[350656136,1738035046382,-151.0,0.00018303,2]
[350656138,1738035046391,-151.0,0.00018303,2]
[350656139,1738035046401,-500.0,0.00018398,2]
[350656140,1738035046411,-513.61,0.00018404,2]
[350656141,1738035046420,-409.79,0.00018407,2]
[350656142,1738035046430,-500.0,0.00018407,2]
[350656143,1738035046439,-518.68469624,0.00018407,2]
[350656144,1738035046448,-151.0,0.00018407,2]
[350656145,1738035046457,-151.0,0.00018407,2]
[350656146,1738035046467,-151.0,0.00018407,2]
[350656147,1738035046476,-201.458573,0.00018407,2]
[350656148,1738035046486,-201.458573,0.00018407,2]
[350656149,1738035046495,-500.0,0.00018437,2]
[350656150,1738035046505,-562.67,0.00018437,2]
[350656151,1738035046515,-500.0,0.00018437,2]
[350656152,1738035046524,-500.0,0.00018438,2]
[350656153,1738035046533,-500.0,0.00018438,2]
[350656154,1738035046543,-500.0,0.00018438,2]
[350656156,1738035046553,-500.0,0.00018438,2]
[350656158,1738035046562,-500.0,0.00018438,2]
[350656160,1738035046571,-500.0,0.00018438,2]
[350656161,1738035046581,-500.0,0.00018438,2]
[350656162,1738035046591,-500.0,0.00018438,2]
[350656163,1738035046600,-500.0,0.00018438,2]
[350656165,1738035046609,-500.0,0.00018438,2]
[350656167,1738035046619,-944.87,0.00018438,2]
[350656168,1738035046628,-2408.08,0.00018438,2]
[350656169,1738035046637,-500.0,0.00018438,2]
[350656170,1738035046647,-259.274481,0.00018438,2]
[350656171,1738035046656,-864.25,0.00018438,2]
[350656172,1738035046665,-419.60269523,0.00018439,2]
[350656173,1738035046674,-500.0,0.00018439,2]
[350656174,1738035046684,-513.61,0.00018439,2]
[350656175,1738035046693,-501.74257795,0.0001844,2]
[350656176,1738035046703,-151.0,0.00018449,2]
[350656177,1738035046712,-355.333469,0.00018449,2]
[350656178,1738035046721,-355.333469,0.00018449,2]
[350656179,1738035046731,-254.602324,0.00018449,2]
[350656180,1738035046740,-254.602324,0.00018449,2]
[350656181,1738035046750,-614.235754,0.00018449,2]
[350656182,1738035046760,-614.235754,0.00018449,2]
[350656183,1738035046769,-151.0,0.0001845,2]
[350656184,1738035046778,-162.805494,0.0001845,2]
[350656185,1738035046787,-162.805494,0.0001845,2]
[350656186,1738035046796,-151.0,0.0001845,2]
[350656187,1738035046805,-395.511229,0.0001845,2]
[350656188,1738035046815,-395.511229,0.0001845,2]
[350656189,1738035046825,-500.0,0.00018535,2]
[350656190,1738035046837,-500.0,0.00018544,2]
[350656191,1738035046846,-562.67,0.00018574,2]
[350656192,1738035046855,-500.0,0.00018574,2]
[350656193,1738035046865,-500.0,0.00018575,2]
[350656194,1738035046876,-500.0,0.00018575,2]
[350656195,1738035046885,-500.0,0.00018575,2]
[350656196,1738035046895,-500.0,0.00018575,2]
[350656198,1738035046905,-500.0,0.00018575,2]
[350656199,1738035046914,-500.0,0.00018575,2]
[350656201,1738035046923,-500.0,0.00018575,2]
[350656202,1738035046933,-944.87,0.00018575,2]
[350656203,1738035046942,-2408.08,0.00018575,2]
[350656204,1738035046952,-864.25,0.00018575,2]
[350656205,1738035046962,-500.0,0.00018576,2]
[350656206,1738035046971,-151.0,0.00018576,2]
[350656207,1738035046981,-151.0,0.00018576,2]
[350656208,1738035046990,-151.0,0.00018576,2]
[350656209,1738035047000,-151.0,0.00018576,2]
[350656210,1738035047009,-151.0,0.00018576,2]
[350656211,1738035047019,-151.0,0.00018576,2]
[350656212,1738035047028,-1000.0,0.00018612,2]
[350656213,1738035047037,-370.24,0.00018672,2]
[350656214,1738035047047,-379.428,0.00018673,2]
[350656215,1738035047056,-422.35,0.00018681,2]
[350656216,1738035047065,-274.50160369,0.000187,2]
[350656217,1738035047075,-562.67,0.00018711,2]
[350656218,1738035047084,-500.0,0.00018711,2]
[350656219,1738035047093,-423.84,0.00018712,2]
[350656220,1738035047102,-500.0,0.00018712,2]
[350656221,1738035047112,-500.0,0.00018712,2]
[350656222,1738035047121,-500.0,0.00018712,2]
[350656223,1738035047130,-513.61,0.00018712,2]
[350656224,1738035047139,-291.28,0.00018712,2]
[350656225,1738035047149,-944.87,0.00018712,2]
[350656226,1738035047158,-2408.08,0.00018712,2]
[350656227,1738035047167,-864.25,0.00018712,2]
[350656228,1738035047176,-500.0,0.00018713,2]
[350656229,1738035047185,-158.534219,0.00018713,2]
[350656230,1738035047195,-151.0,0.00018713,2]
[350656231,1738035047204,-158.534219,0.00018713,2]
[350656232,1738035047213,-1000.0,0.00018732,2]
[350656233,1738035047222,-151.0,0.000188,2]
[350656234,1738035047231,-442.72699873,0.00018825,2]
[350656235,1738035047241,-562.67,0.00018848,2]
[350656236,1738035047250,-500.0,0.00018848,2]
[350656237,1738035047259,-216.200775,0.00018849,2]
[350656238,1738035047269,-151.0,0.00018849,2]
[350656239,1738035047279,-151.0,0.00018849,2]
[350656240,1738035047289,-151.0,0.00018849,2]
[350656241,1738035047298,-500.0,0.00018849,2]
[350656242,1738035047308,-500.0,0.00018849,2]
[350656243,1738035047317,-490.0,0.00018849,2]
[350656244,1738035047326,-944.87,0.00018849,2]
[350656245,1738035047336,-2408.08,0.00018849,2]
[350656246,1738035047345,-864.25,0.00018849,2]
[350656247,1738035047354,-500.0,0.0001885,2]
[350656248,1738035047364,-513.61,0.0001885,2]
[350656249,1738035047378,-283.768208,0.00018851,2]
[350656250,1738035047388,-151.0,0.00018851,2]
[350656251,1738035047397,-151.0,0.00018851,2]
[350656252,1738035047406,-201.458573,0.00018851,2]
[350656253,1738035047415,-201.458573,0.00018851,2]
[350656254,1738035047431,-500.0,0.00018919,2]
[350656255,1738035047444,-562.67,0.00018985,2]
[350656256,1738035047455,-158.08,0.00018985,2]
[350656257,1738035047466,-302.49,0.00018986,2]
[350656258,1738035047476,-500.0,0.00018986,2]
[350656259,1738035047487,-944.87,0.00018986,2]
[350656260,1738035047497,-2408.08,0.00018986,2]
[350656261,1738035047507,-864.25,0.00018986,2]
[350656262,1738035047517,-500.0,0.00018987,2]
[350656263,1738035047527,-562.67,0.00019122,2]
[350656264,1738035047536,-500.0,0.00019123,2]
[350656265,1738035047546,-944.87,0.00019123,2]
[350656266,1738035047556,-2408.08,0.00019123,2]
[350656267,1738035047565,-864.25,0.00019123,2]
[350656268,1738035047574,-500.0,0.00019124,2]
[350656269,1738035047583,-513.61,0.00019124,2]
[350656270,1738035047592,-513.61,0.00019124,2]
[350656271,1738035047601,-513.61,0.00019124,2]
[350656272,1738035047610,-513.61,0.00019124,2]
[350656273,1738035047619,-513.75007928,0.00019124,2]
[350656274,1738035047629,-151.0,0.00019124,2]
[350656275,1738035047638,-355.333469,0.00019124,2]
[350656276,1738035047647,-355.333469,0.00019124,2]
[350656277,1738035047657,-254.602324,0.00019124,2]
[350656278,1738035047666,-254.602324,0.00019124,2]
[350656279,1738035047676,-614.235754,0.00019124,2]
[350656280,1738035047685,-614.235754,0.00019124,2]
[350656281,1738035047694,-151.0,0.00019124,2]
[350656282,1738035047704,-162.805494,0.00019124,2]
[350656283,1738035047714,-162.805494,0.00019124,2]
[350656284,1738035047723,-151.0,0.00019124,2]
[350656285,1738035047732,-395.511229,0.00019124,2]
[350656286,1738035047742,-395.511229,0.00019124,2]
[350656287,1738035047751,-151.0,0.00019136,2]
[350656288,1738035047760,-160.400409,0.00019178,2]
[350656289,1738035047769,-151.0,0.000192,2]
[350656290,1738035047778,-562.67,0.00019259,2]
[350656291,1738035047788,-500.0,0.0001926,2]
[350656292,1738035047797,-944.87,0.0001926,2]
[350656293,1738035047807,-2408.08,0.0001926,2]
[350656294,1738035047815,-864.25,0.0001926,2]
[350656295,1738035047825,-500.0,0.00019261,2]
[350656296,1738035047838,-562.67,0.00019396,2]
[350656297,1738035047847,-554.61,0.00019397,2]
[350656298,1738035047933,-944.87,0.00019397,2]
[350656299,1738035047944,-2408.08,0.00019397,2]
[350656300,1738035047957,-864.25,0.00019397,2]
[350656301,1738035047968,-500.0,0.00019398,2]
[350656302,1738035047978,-151.0,0.00019398,2]
[350656303,1738035047987,-151.0,0.00019398,2]
[350656304,1738035047996,-151.0,0.00019398,2]
[350656305,1738035048006,-151.0,0.00019398,2]
[350656306,1738035048015,-151.0,0.00019398,2]
[350656307,1738035048024,-151.0,0.00019398,2]
[350656308,1738035048034,-151.0,0.00019442,2]
[350656309,1738035048043,-201.458573,0.00019442,2]
[350656310,1738035048052,-201.458573,0.00019442,2]
[350656311,1738035048061,-275.180207,0.00019442,2]
[350656312,1738035048070,-151.0,0.00019442,2]
[350656313,1738035048080,-151.0,0.00019442,2]
[350656314,1738035048089,-158.534219,0.00019442,2]
[350656315,1738035048099,-151.0,0.00019442,2]
[350656316,1738035048108,-158.534219,0.00019442,2]
[350656317,1738035048117,-562.67,0.00019533,2]
[350656318,1738035048126,-944.87,0.00019534,2]
[350656319,1738035048136,-2408.08,0.00019534,2]
[350656320,1738035048145,-864.25,0.00019534,2]
[350656321,1738035048154,-420.37,0.00019535,2]
[350656322,1738035048163,-442.72699873,0.00019598,2]
[350656323,1738035048172,-151.0,0.000196,2]
[350656324,1738035048181,-500.0,0.00019653,2]
[350656325,1738035048191,-266.5924784,0.00019653,2]
[350656326,1738035048200,-562.67,0.0001967,2]
[350656327,1738035048209,-944.87,0.00019671,2]
[350656328,1738035048219,-2408.08,0.00019671,2]
[350656329,1738035048229,-864.25,0.00019671,2]
[350656330,1738035048239,-217.0,0.00019679,2]
[350656331,1738035048249,-562.67,0.00019807,2]
[350656332,1738035048259,-944.87,0.00019808,2]
[350656333,1738035048269,-2408.08,0.00019808,2]
[350656334,1738035048279,-864.25,0.00019808,2]
[350656335,1738035048288,-176.9798005,0.00019846,2]
[350656336,1738035048298,-562.67,0.00019944,2]
[350656337,1738035048307,-944.87,0.00019945,2]
[350656338,1738035048317,-2408.08,0.00019945,2]
[350656339,1738035048327,-864.25,0.00019945,2]
[350656340,1738035048336,-295.247941,0.00019946,2]
[350656341,1738035048345,-355.333469,0.00019946,2]
[350656342,1738035048355,-355.333469,0.00019946,2]
[350656343,1738035048364,-254.602324,0.00019946,2]
[350656344,1738035048374,-254.602324,0.00019946,2]
[350656345,1738035048384,-614.235754,0.00019946,2]
[350656346,1738035048393,-614.235754,0.00019946,2]
[350656347,1738035048403,-151.0,0.00019946,2]
[350656348,1738035048412,-162.805494,0.00019946,2]
[350656349,1738035048422,-162.805494,0.00019946,2]
[350656350,1738035048431,-151.0,0.00019946,2]
[350656351,1738035048441,-395.511229,0.00019946,2]
[350656352,1738035048450,-395.511229,0.00019946,2]
[350656353,1738035048460,-1055.51387231,0.00020033,2]
[350656354,1738035048471,-562.67,0.00020081,2]
[350656355,1738035048487,-484.09295901,0.00020082,2]
[350656356,1738035048508,-306.84895474,0.00020082,2]
[350656358,1738035415566,170.365348,0.00013973,2]
[350656380,1738036028133,-1966.99233858,0.00015305,2]
[350656381,1738036028163,-300.0,0.00015358,2]
[350656382,1738036028192,-4869.43951631,0.00015359,2]
[350656383,1738036031138,-212.64414419,0.00015359,2]
[350656387,1738036033084,-452.523479,0.00015359,2]
[350656390,1738036046634,162.5682872,0.00014964,2]
[350656391,1738036047104,-5873.19703491,0.00015359,2]
[350656392,1738036055177,1995.4797289,0.00014964,2]
[350656393,1738036150206,-150.60843884,0.000154,2]
[350656394,1738036150226,-7828.06169,0.00015459,2]
[350656395,1738036150248,-300.0,0.00015656,2]
[350656396,1738036150268,-6756.5322251,0.00015657,2]
[350656397,1738036150289,-285.74495139,0.00015742,2]
[350656398,1738036150311,-23932.14607155,0.00015762,2]
[350656399,1738036161125,-869.22258185,0.00015762,2]
[350656400,1738036161146,-153.0,0.00015842,2]
[350656401,1738036161170,-153.0,0.00015842,2]
[350656402,1738036161191,-153.0,0.00015842,2]
[350656403,1738036161212,-153.0,0.00015842,2]
[350656404,1738036161232,-153.0,0.00015842,2]
[350656405,1738036161256,-153.0,0.00015842,2]
[350656406,1738036161276,-153.0,0.00015842,2]
[350656407,1738036161296,-153.0,0.00015847,2]
[350656408,1738036161316,-153.0,0.00015847,2]
[350656409,1738036161336,-153.0,0.00015847,2]
[350656410,1738036161356,-153.0,0.00015847,2]
[350656411,1738036161376,-153.0,0.00015847,2]
[350656412,1738036161397,-153.0,0.00015848,2]
[350656413,1738036161417,-153.0,0.00015848,2]
[350656414,1738036161437,-153.0,0.00015848,2]
[350656415,1738036161458,-153.0,0.00015848,2]
[350656416,1738036161479,-153.0,0.00015848,2]
[350656417,1738036161499,-153.0,0.00015848,2]
[350656418,1738036161519,-63.06397466,0.00015848,2]
[350656421,1738036232182,-153.0,0.0001583,2]
[350656422,1738036232193,-153.0,0.0001583,2]
[350656423,1738036232204,-153.0,0.0001583,2]
[350656424,1738036232214,-153.0,0.0001583,2]
[350656425,1738036232224,-153.0,0.0001583,2]
[350656426,1738036232235,-153.0,0.0001583,2]
[350656427,1738036232249,-153.0,0.0001583,2]
[350656428,1738036232261,-153.0,0.0001583,2]
[350656429,1738036232271,-89.93602534,0.00015848,2]
[350656430,1738036232283,-300.0,0.00016437,2]
[350656431,1738036232293,-500.0,0.00016438,2]
[350656432,1738036232305,-500.0,0.00016438,2]
[350656433,1738036232315,-500.0,0.00016438,2]
[350656434,1738036232327,-500.0,0.00016438,2]
[350656435,1738036232339,-500.0,0.00016438,2]
[350656436,1738036232349,-500.0,0.00016438,2]
[350656437,1738036232361,-500.0,0.00016438,2]
[350656438,1738036232372,-500.0,0.00016438,2]
[350656439,1738036232384,-500.0,0.00016438,2]
[350656440,1738036232394,-500.0,0.00016438,2]
[350656441,1738036232406,-906.26,0.00016438,2]
[350656442,1738036232417,-906.26,0.00016438,2]
[350656443,1738036232428,-500.0,0.00016438,2]
[350656444,1738036232439,-500.0,0.00016438,2]
[350656445,1738036232449,-483.38984569,0.00016438,2]
[350656446,1738036232461,-36.633825,0.00016438,2]
[350656447,1738036232471,-488.41707805,0.00016438,2]
[350656448,1738036232483,-11.58292195,0.00016438,2]
[350656449,1738036232495,-500.0,0.00016438,2]
[350656450,1738036232505,-500.0,0.00016438,2]
[350656451,1738036232515,-500.0,0.00016438,2]
[350656452,1738036232527,-500.0,0.00016438,2]
[350656453,1738036232538,-500.0,0.00016438,2]
[350656454,1738036232550,-500.0,0.00016438,2]
[350656455,1738036232561,-500.0,0.00016438,2]
[350656456,1738036232572,-906.26,0.00016479,2]
[350656457,1738036232583,-500.0,0.0001648,2]
[350656458,1738036232593,-500.0,0.0001648,2]
[350656459,1738036232602,-500.0,0.0001648,2]
[350656460,1738036232613,-500.0,0.0001648,2]
[350656461,1738036232624,-500.0,0.0001648,2]
[350656462,1738036232634,-500.0,0.0001648,2]
[350656463,1738036232644,-500.0,0.0001648,2]
[350656464,1738036232655,-503.75403089,0.0001648,2]
[350656465,1738036232666,-503.94288791,0.0001648,2]
[350656466,1738036232676,-505.2209599,0.0001648,2]
[350656467,1738036232687,-506.76906013,0.0001648,2]
[350656468,1738036232697,-502.08234123,0.0001648,2]
[350656469,1738036232708,-596.61331891,0.0001648,2]
[350656470,1738036232718,-503.67761493,0.0001648,2]
[350656471,1738036232728,-500.0,0.0001648,2]
[350656472,1738036232739,-506.1696623,0.0001648,2]
[350656473,1738036232749,-500.0,0.0001648,2]
[350656474,1738036232759,-500.0,0.0001648,2]
[350656475,1738036232770,-500.0,0.0001648,2]
[350656476,1738036232780,-500.0,0.0001648,2]
[350656477,1738036232791,-507.89377265,0.0001648,2]
[350656478,1738036232801,-504.4984529,0.0001648,2]
[350656479,1738036232811,-504.79176537,0.0001648,2]
[350656480,1738036232822,-197.09762083,0.00016489,2]